Workbook

Sheet 直結給水方式に切り換えた場合の費用削減効果算出ソフト

Sheet 年間削減電気料金算出図(インバータ→直圧直結) (hidden)
A1: 年間削減電気料金算出図(インバータ→直圧直結)
A3: 貯水槽容量 | B3: 年間使用水量 | C3: 年間削減電気料金
A4: 0.002739726027 | B4: =A4*365 -> 1 | C4: =ROUND((-0.178*LN(A4)+1.05)*B4*電力量料金登録!B3, 0) -> 55
A5: 0.1 | B5: =A5*365 -> 36.5 | C5: =ROUND((-0.178*LN(A5)+1.05)*B5*電力量料金登録!B3, 0) -> 1385
A6: 0.5 | B6: =A6*365 -> 182.5 | C6: =ROUND((-0.178*LN(A6)+1.05)*B6*電力量料金登録!B3, 0) -> 5568
A7: 1 | B7: 365 | C7: =ROUND((-0.178*LN(A7)+1.05)*B7*電力量料金登録!B3, 0) -> 9965
A8: 2 | B8: 730 | C8: =ROUND((-0.178*LN(A8)+1.05)*B8*電力量料金登録!B3, 0) -> 17587
A9: 3 | B9: 1095 | C9: =ROUND((-0.178*LN(A9)+1.05)*B9*電力量料金登録!B3, 0) -> 24326
A10: 4 | B10: 1460 | C10: =ROUND((-0.178*LN(A10)+1.05)*B10*電力量料金登録!B3, 0) -> 30491
A11: 5 | B11: 1825 | C11: =ROUND((-0.178*LN(A11)+1.05)*B11*電力量料金登録!B3, 0) -> 36229
A12: 6 | B12: 2190 | C12: =ROUND((-0.178*LN(A12)+1.05)*B12*電力量料金登録!B3, 0) -> 41627
A13: 7 | B13: 2555 | C13: =ROUND((-0.178*LN(A13)+1.05)*B13*電力量料金登録!B3, 0) -> 46742
A14: 8 | B14: 2920 | C14: =ROUND((-0.178*LN(A14)+1.05)*B14*電力量料金登録!B3, 0) -> 51615
A15: 9 | B15: 3285 | C15: =ROUND((-0.178*LN(A15)+1.05)*B15*電力量料金登録!B3, 0) -> 56276
A16: 10 | B16: 3650 | C16: =ROUND((-0.178*LN(A16)+1.05)*B16*電力量料金登録!B3, 0) -> 60749
A17: 11 | B17: 4015 | C17: =ROUND((-0.178*LN(A17)+1.05)*B17*電力量料金登録!B3, 0) -> 65053
A18: 12 | B18: 4380 | C18: =ROUND((-0.178*LN(A18)+1.05)*B18*電力量料金登録!B3, 0) -> 69203
A19: 13 | B19: 4745 | C19: =ROUND((-0.178*LN(A19)+1.05)*B19*電力量料金登録!B3, 0) -> 73213
A20: 14 | B20: 5110 | C20: =ROUND((-0.178*LN(A20)+1.05)*B20*電力量料金登録!B3, 0) -> 77092
A21: 15 | B21: 5475 | C21: =ROUND((-0.178*LN(A21)+1.05)*B21*電力量料金登録!B3, 0) -> 80850
A22: 16 | B22: 5840 | C22: =ROUND((-0.178*LN(A22)+1.05)*B22*電力量料金登録!B3, 0) -> 84496
A23: 17 | B23: 6205 | C23: =ROUND((-0.178*LN(A23)+1.05)*B23*電力量料金登録!B3, 0) -> 88036
A24: 18 | B24: 6570 | C24: =ROUND((-0.178*LN(A24)+1.05)*B24*電力量料金登録!B3, 0) -> 91476
A25: 19 | B25: 6935 | C25: =ROUND((-0.178*LN(A25)+1.05)*B25*電力量料金登録!B3, 0) -> 94823
A26: 20 | B26: 7300 | C26: =ROUND((-0.178*LN(A26)+1.05)*B26*電力量料金登録!B3, 0) -> 98081
A27: 21 | B27: 7665 | C27: =ROUND((-0.178*LN(A27)+1.05)*B27*電力量料金登録!B3, 0) -> 101254
A28: 22 | B28: 8030 | C28: =ROUND((-0.178*LN(A28)+1.05)*B28*電力量料金登録!B3, 0) -> 104347
A29: 23 | B29: 8395 | C29: =ROUND((-0.178*LN(A29)+1.05)*B29*電力量料金登録!B3, 0) -> 107363
A30: 24 | B30: 8760 | C30: =ROUND((-0.178*LN(A30)+1.05)*B30*電力量料金登録!B3, 0) -> 110306
A31: 25 | B31: 9125 | C31: =ROUND((-0.178*LN(A31)+1.05)*B31*電力量料金登録!B3, 0) -> 113178
A32: 26 | B32: 9490 | C32: =ROUND((-0.178*LN(A32)+1.05)*B32*電力量料金登録!B3, 0) -> 115982
A33: 27 | B33: 9855 | C33: =ROUND((-0.178*LN(A33)+1.05)*B33*電力量料金登録!B3, 0) -> 118722
A34: 28 | B34: 10220 | C34: =ROUND((-0.178*LN(A34)+1.05)*B34*電力量料金登録!B3, 0) -> 121399
A35: 29 | B35: 10585 | C35: =ROUND((-0.178*LN(A35)+1.05)*B35*電力量料金登録!B3, 0) -> 124015
A36: 30 | B36: 10950 | C36: =ROUND((-0.178*LN(A36)+1.05)*B36*電力量料金登録!B3, 0) -> 126574
A37: 31 | B37: 11315 | C37: =ROUND((-0.178*LN(A37)+1.05)*B37*電力量料金登録!B3, 0) -> 129076
A38: 32 | B38: 11680 | C38: =ROUND((-0.178*LN(A38)+1.05)*B38*電力量料金登録!B3, 0) -> 131524
A39: 33 | B39: 12045 | C39: =ROUND((-0.178*LN(A39)+1.05)*B39*電力量料金登録!B3, 0) -> 133918
A40: 34 | B40: 12410 | C40: =ROUND((-0.178*LN(A40)+1.05)*B40*電力量料金登録!B3, 0) -> 136262
A41: 35 | B41: 12775 | C41: =ROUND((-0.178*LN(A41)+1.05)*B41*電力量料金登録!B3, 0) -> 138556
A42: 36 | B42: 13140 | C42: =ROUND((-0.178*LN(A42)+1.05)*B42*電力量料金登録!B3, 0) -> 140801
A43: 37 | B43: 13505 | C43: =ROUND((-0.178*LN(A43)+1.05)*B43*電力量料金登録!B3, 0) -> 143000
A44: 38 | B44: 13870 | C44: =ROUND((-0.178*LN(A44)+1.05)*B44*電力量料金登録!B3, 0) -> 145153
A45: 39 | B45: 14235 | C45: =ROUND((-0.178*LN(A45)+1.05)*B45*電力量料金登録!B3, 0) -> 147262
A46: 40 | B46: 14600 | C46: =ROUND((-0.178*LN(A46)+1.05)*B46*電力量料金登録!B3, 0) -> 149327
A47: 41 | B47: 14965 | C47: =ROUND((-0.178*LN(A47)+1.05)*B47*電力量料金登録!B3, 0) -> 151350
A48: 42 | B48: 15330 | C48: =ROUND((-0.178*LN(A48)+1.05)*B48*電力量料金登録!B3, 0) -> 153332

Sheet 年間削減電気料金算出図(非インバータ→直圧直結) (hidden)
A1: 年間削減電気料金算出図(非インバータ→直圧直結)
A3: 貯水槽容量 | B3: 年間使用水量 | C3: 年間削減電気料金
A4: 0.002739726027 | B4: =A4*365 -> 1 | C4: =ROUND((-0.289*LN(A4)+1.86)*B4*電力量料金登録!B3, 0) -> 93
A5: 0.1 | B5: =A5*365 -> 36.5 | C5: =ROUND((-0.289*LN(A5)+1.86)*B5*電力量料金登録!B3, 0) -> 2397
A6: 0.5 | B6: =A6*365 -> 182.5 | C6: =ROUND((-0.289*LN(A6)+1.86)*B6*電力量料金登録!B3, 0) -> 9776
A7: 1 | B7: 365 | C7: =ROUND((-0.289*LN(A7)+1.86)*B7*電力量料金登録!B3, 0) -> 17651
A8: 2 | B8: 730 | C8: =ROUND((-0.289*LN(A8)+1.86)*B8*電力量料金登録!B3, 0) -> 31501
A9: 3 | B9: 1095 | C9: =ROUND((-0.289*LN(A9)+1.86)*B9*電力量料金登録!B3, 0) -> 43915
A10: 4 | B10: 1460 | C10: =ROUND((-0.289*LN(A10)+1.86)*B10*電力量料金登録!B3, 0) -> 55397
A11: 5 | B11: 1825 | C11: =ROUND((-0.289*LN(A11)+1.86)*B11*電力量料金登録!B3, 0) -> 66187
A12: 6 | B12: 2190 | C12: =ROUND((-0.289*LN(A12)+1.86)*B12*電力量料金登録!B3, 0) -> 76424
A13: 7 | B13: 2555 | C13: =ROUND((-0.289*LN(A13)+1.86)*B13*電力量料金登録!B3, 0) -> 86202
A14: 8 | B14: 2920 | C14: =ROUND((-0.289*LN(A14)+1.86)*B14*電力量料金登録!B3, 0) -> 95586
A15: 9 | B15: 3285 | C15: =ROUND((-0.289*LN(A15)+1.86)*B15*電力量料金登録!B3, 0) -> 104627
A16: 10 | B16: 3650 | C16: =ROUND((-0.289*LN(A16)+1.86)*B16*電力量料金登録!B3, 0) -> 113363
A17: 11 | B17: 4015 | C17: =ROUND((-0.289*LN(A17)+1.86)*B17*電力量料金登録!B3, 0) -> 121824
A18: 12 | B18: 4380 | C18: =ROUND((-0.289*LN(A18)+1.86)*B18*電力量料金登録!B3, 0) -> 130035
A19: 13 | B19: 4745 | C19: =ROUND((-0.289*LN(A19)+1.86)*B19*電力量料金登録!B3, 0) -> 138018
A20: 14 | B20: 5110 | C20: =ROUND((-0.289*LN(A20)+1.86)*B20*電力量料金登録!B3, 0) -> 145789
A21: 15 | B21: 5475 | C21: =ROUND((-0.289*LN(A21)+1.86)*B21*電力量料金登録!B3, 0) -> 153364
A22: 16 | B22: 5840 | C22: =ROUND((-0.289*LN(A22)+1.86)*B22*電力量料金登録!B3, 0) -> 160756
A23: 17 | B23: 6205 | C23: =ROUND((-0.289*LN(A23)+1.86)*B23*電力量料金登録!B3, 0) -> 167977
A24: 18 | B24: 6570 | C24: =ROUND((-0.289*LN(A24)+1.86)*B24*電力量料金登録!B3, 0) -> 175036
A25: 19 | B25: 6935 | C25: =ROUND((-0.289*LN(A25)+1.86)*B25*電力量料金登録!B3, 0) -> 181943
A26: 20 | B26: 7300 | C26: =ROUND((-0.289*LN(A26)+1.86)*B26*電力量料金登録!B3, 0) -> 188705
A27: 21 | B27: 7665 | C27: =ROUND((-0.289*LN(A27)+1.86)*B27*電力量料金登録!B3, 0) -> 195331
A28: 22 | B28: 8030 | C28: =ROUND((-0.289*LN(A28)+1.86)*B28*電力量料金登録!B3, 0) -> 201825
A29: 23 | B29: 8395 | C29: =ROUND((-0.289*LN(A29)+1.86)*B29*電力量料金登録!B3, 0) -> 208195
A30: 24 | B30: 8760 | C30: =ROUND((-0.289*LN(A30)+1.86)*B30*電力量料金登録!B3, 0) -> 214446
A31: 25 | B31: 9125 | C31: =ROUND((-0.289*LN(A31)+1.86)*B31*電力量料金登録!B3, 0) -> 220582
A32: 26 | B32: 9490 | C32: =ROUND((-0.289*LN(A32)+1.86)*B32*電力量料金登録!B3, 0) -> 226609
A33: 27 | B33: 9855 | C33: =ROUND((-0.289*LN(A33)+1.86)*B33*電力量料金登録!B3, 0) -> 232530
A34: 28 | B34: 10220 | C34: =ROUND((-0.289*LN(A34)+1.86)*B34*電力量料金登録!B3, 0) -> 238349
A35: 29 | B35: 10585 | C35: =ROUND((-0.289*LN(A35)+1.86)*B35*電力量料金登録!B3, 0) -> 244070
A36: 30 | B36: 10950 | C36: =ROUND((-0.289*LN(A36)+1.86)*B36*電力量料金登録!B3, 0) -> 249697
A37: 31 | B37: 11315 | C37: =ROUND((-0.289*LN(A37)+1.86)*B37*電力量料金登録!B3, 0) -> 255233
A38: 32 | B38: 11680 | C38: =ROUND((-0.289*LN(A38)+1.86)*B38*電力量料金登録!B3, 0) -> 260680
A39: 33 | B39: 12045 | C39: =ROUND((-0.289*LN(A39)+1.86)*B39*電力量料金登録!B3, 0) -> 266041
A40: 34 | B40: 12410 | C40: =ROUND((-0.289*LN(A40)+1.86)*B40*電力量料金登録!B3, 0) -> 271319
A41: 35 | B41: 12775 | C41: =ROUND((-0.289*LN(A41)+1.86)*B41*電力量料金登録!B3, 0) -> 276516
A42: 36 | B42: 13140 | C42: =ROUND((-0.289*LN(A42)+1.86)*B42*電力量料金登録!B3, 0) -> 281635
A43: 37 | B43: 13505 | C43: =ROUND((-0.289*LN(A43)+1.86)*B43*電力量料金登録!B3, 0) -> 286678
A44: 38 | B44: 13870 | C44: =ROUND((-0.289*LN(A44)+1.86)*B44*電力量料金登録!B3, 0) -> 291647
A45: 39 | B45: 14235 | C45: =ROUND((-0.289*LN(A45)+1.86)*B45*電力量料金登録!B3, 0) -> 296543
A46: 40 | B46: 14600 | C46: =ROUND((-0.289*LN(A46)+1.86)*B46*電力量料金登録!B3, 0) -> 301370
A47: 41 | B47: 14965 | C47: =ROUND((-0.289*LN(A47)+1.86)*B47*電力量料金登録!B3, 0) -> 306127
A48: 42 | B48: 15330 | C48: =ROUND((-0.289*LN(A48)+1.86)*B48*電力量料金登録!B3, 0) -> 310818

Sheet 年間削減電気料金算出図(高置水槽→直圧直結) (hidden)
A1: 年間削減電気料金算出図(高置水槽→直圧直結)
A3: 貯水槽容量 | B3: 年間使用水量 | C3: 年間削減電気料金
A4: 0.002739726027 | B4: =A4*365 -> 1 | C4: =ROUND((0.0012*A4+0.261)*B4*電力量料金登録!B3, 0) -> 7
A5: 0.1 | B5: =A5*365 -> 36.5 | C5: =ROUND((0.0012*A5+0.261)*B5*電力量料金登録!B3, 0) -> 248
A6: 0.5 | B6: =A6*365 -> 182.5 | C6: =ROUND((0.0012*A6+0.261)*B6*電力量料金登録!B3, 0) -> 1241
A7: 1 | B7: 365 | C7: =ROUND((0.0012*A7+0.261)*B7*電力量料金登録!B3, 0) -> 2488
A8: 2 | B8: 730 | C8: =ROUND((0.0012*A8+0.261)*B8*電力量料金登録!B3, 0) -> 4999
A9: 3 | B9: 1095 | C9: =ROUND((0.0012*A9+0.261)*B9*電力量料金登録!B3, 0) -> 7533
A10: 4 | B10: 1460 | C10: =ROUND((0.0012*A10+0.261)*B10*電力量料金登録!B3, 0) -> 10090
A11: 5 | B11: 1825 | C11: =ROUND((0.0012*A11+0.261)*B11*電力量料金登録!B3, 0) -> 12669
A12: 6 | B12: 2190 | C12: =ROUND((0.0012*A12+0.261)*B12*電力量料金登録!B3, 0) -> 15271
A13: 7 | B13: 2555 | C13: =ROUND((0.0012*A13+0.261)*B13*電力量料金登録!B3, 0) -> 17896
A14: 8 | B14: 2920 | C14: =ROUND((0.0012*A14+0.261)*B14*電力量料金登録!B3, 0) -> 20544
A15: 9 | B15: 3285 | C15: =ROUND((0.0012*A15+0.261)*B15*電力量料金登録!B3, 0) -> 23214
A16: 10 | B16: 3650 | C16: =ROUND((0.0012*A16+0.261)*B16*電力量料金登録!B3, 0) -> 25908
A17: 11 | B17: 4015 | C17: =ROUND((0.0012*A17+0.261)*B17*電力量料金登録!B3, 0) -> 28624
A18: 12 | B18: 4380 | C18: =ROUND((0.0012*A18+0.261)*B18*電力量料金登録!B3, 0) -> 31363
A19: 13 | B19: 4745 | C19: =ROUND((0.0012*A19+0.261)*B19*電力量料金登録!B3, 0) -> 34124
A20: 14 | B20: 5110 | C20: =ROUND((0.0012*A20+0.261)*B20*電力量料金登録!B3, 0) -> 36909
A21: 15 | B21: 5475 | C21: =ROUND((0.0012*A21+0.261)*B21*電力量料金登録!B3, 0) -> 39716
A22: 16 | B22: 5840 | C22: =ROUND((0.0012*A22+0.261)*B22*電力量料金登録!B3, 0) -> 42546
A23: 17 | B23: 6205 | C23: =ROUND((0.0012*A23+0.261)*B23*電力量料金登録!B3, 0) -> 45398
A24: 18 | B24: 6570 | C24: =ROUND((0.0012*A24+0.261)*B24*電力量料金登録!B3, 0) -> 48274
A25: 19 | B25: 6935 | C25: =ROUND((0.0012*A25+0.261)*B25*電力量料金登録!B3, 0) -> 51172
A26: 20 | B26: 7300 | C26: =ROUND((0.0012*A26+0.261)*B26*電力量料金登録!B3, 0) -> 54093
A27: 21 | B27: 7665 | C27: =ROUND((0.0012*A27+0.261)*B27*電力量料金登録!B3, 0) -> 57037
A28: 22 | B28: 8030 | C28: =ROUND((0.0012*A28+0.261)*B28*電力量料金登録!B3, 0) -> 60003
A29: 23 | B29: 8395 | C29: =ROUND((0.0012*A29+0.261)*B29*電力量料金登録!B3, 0) -> 62993
A30: 24 | B30: 8760 | C30: =ROUND((0.0012*A30+0.261)*B30*電力量料金登録!B3, 0) -> 66005
A31: 25 | B31: 9125 | C31: =ROUND((0.0012*A31+0.261)*B31*電力量料金登録!B3, 0) -> 69040
A32: 26 | B32: 9490 | C32: =ROUND((0.0012*A32+0.261)*B32*電力量料金登録!B3, 0) -> 72097
A33: 27 | B33: 9855 | C33: =ROUND((0.0012*A33+0.261)*B33*電力量料金登録!B3, 0) -> 75178
A34: 28 | B34: 10220 | C34: =ROUND((0.0012*A34+0.261)*B34*電力量料金登録!B3, 0) -> 78281
A35: 29 | B35: 10585 | C35: =ROUND((0.0012*A35+0.261)*B35*電力量料金登録!B3, 0) -> 81407
A36: 30 | B36: 10950 | C36: =ROUND((0.0012*A36+0.261)*B36*電力量料金登録!B3, 0) -> 84556
A37: 31 | B37: 11315 | C37: =ROUND((0.0012*A37+0.261)*B37*電力量料金登録!B3, 0) -> 87727
A38: 32 | B38: 11680 | C38: =ROUND((0.0012*A38+0.261)*B38*電力量料金登録!B3, 0) -> 90922
A39: 33 | B39: 12045 | C39: =ROUND((0.0012*A39+0.261)*B39*電力量料金登録!B3, 0) -> 94139
A40: 34 | B40: 12410 | C40: =ROUND((0.0012*A40+0.261)*B40*電力量料金登録!B3, 0) -> 97379
A41: 35 | B41: 12775 | C41: =ROUND((0.0012*A41+0.261)*B41*電力量料金登録!B3, 0) -> 100641
A42: 36 | B42: 13140 | C42: =ROUND((0.0012*A42+0.261)*B42*電力量料金登録!B3, 0) -> 103927
A43: 37 | B43: 13505 | C43: =ROUND((0.0012*A43+0.261)*B43*電力量料金登録!B3, 0) -> 107235
A44: 38 | B44: 13870 | C44: =ROUND((0.0012*A44+0.261)*B44*電力量料金登録!B3, 0) -> 110566
A45: 39 | B45: 14235 | C45: =ROUND((0.0012*A45+0.261)*B45*電力量料金登録!B3, 0) -> 113920
A46: 40 | B46: 14600 | C46: =ROUND((0.0012*A46+0.261)*B46*電力量料金登録!B3, 0) -> 117296
A47: 41 | B47: 14965 | C47: =ROUND((0.0012*A47+0.261)*B47*電力量料金登録!B3, 0) -> 120696
A48: 42 | B48: 15330 | C48: =ROUND((0.0012*A48+0.261)*B48*電力量料金登録!B3, 0) -> 124118

Sheet 年間削減電気料金算出図(型式等不明→直圧直結) (hidden)
A1: 年間削減電気料金算出図(型式等不明→直圧直結)
A3: 貯水槽容量 | B3: 年間使用水量 | C3: 年間削減電気料金
A4: 0.002739726027 | B4: =A4*365 -> 1 | C4: =ROUND((0.000398*A4-0.17*LN(A4)+1.07)*B4*電力量料金登録!B3, 0) -> 54
A5: 0.1 | B5: =A5*365 -> 36.5 | C5: =ROUND((0.000398*A5-0.17*LN(A5)+1.07)*B5*電力量料金登録!B3, 0) -> 1387
A6: 0.5 | B6: =A6*365 -> 182.5 | C6: =ROUND((0.000398*A6-0.17*LN(A6)+1.07)*B6*電力量料金登録!B3, 0) -> 5637
A7: 1 | B7: 365 | C7: =ROUND((0.000398*A7-0.17*LN(A7)+1.07)*B7*電力量料金登録!B3, 0) -> 10158
A8: 2 | B8: 730 | C8: =ROUND((0.000398*A8-0.17*LN(A8)+1.07)*B8*電力量料金登録!B3, 0) -> 18087
A9: 3 | B9: 1095 | C9: =ROUND((0.000398*A9-0.17*LN(A9)+1.07)*B9*電力量料金登録!B3, 0) -> 25180
A10: 4 | B10: 1460 | C10: =ROUND((0.000398*A10-0.17*LN(A10)+1.07)*B10*電力量料金登録!B3, 0) -> 31732
A11: 5 | B11: 1825 | C11: =ROUND((0.000398*A11-0.17*LN(A11)+1.07)*B11*電力量料金登録!B3, 0) -> 37883
A12: 6 | B12: 2190 | C12: =ROUND((0.000398*A12-0.17*LN(A12)+1.07)*B12*電力量料金登録!B3, 0) -> 43718
A13: 7 | B13: 2555 | C13: =ROUND((0.000398*A13-0.17*LN(A13)+1.07)*B13*電力量料金登録!B3, 0) -> 49290
A14: 8 | B14: 2920 | C14: =ROUND((0.000398*A14-0.17*LN(A14)+1.07)*B14*電力量料金登録!B3, 0) -> 54638
A15: 9 | B15: 3285 | C15: =ROUND((0.000398*A15-0.17*LN(A15)+1.07)*B15*電力量料金登録!B3, 0) -> 59792
A16: 10 | B16: 3650 | C16: =ROUND((0.000398*A16-0.17*LN(A16)+1.07)*B16*電力量料金登録!B3, 0) -> 64773
A17: 11 | B17: 4015 | C17: =ROUND((0.000398*A17-0.17*LN(A17)+1.07)*B17*電力量料金登録!B3, 0) -> 69601
A18: 12 | B18: 4380 | C18: =ROUND((0.000398*A18-0.17*LN(A18)+1.07)*B18*電力量料金登録!B3, 0) -> 74289
A19: 13 | B19: 4745 | C19: =ROUND((0.000398*A19-0.17*LN(A19)+1.07)*B19*電力量料金登録!B3, 0) -> 78850
A20: 14 | B20: 5110 | C20: =ROUND((0.000398*A20-0.17*LN(A20)+1.07)*B20*電力量料金登録!B3, 0) -> 83294
A21: 15 | B21: 5475 | C21: =ROUND((0.000398*A21-0.17*LN(A21)+1.07)*B21*電力量料金登録!B3, 0) -> 87631
A22: 16 | B22: 5840 | C22: =ROUND((0.000398*A22-0.17*LN(A22)+1.07)*B22*電力量料金登録!B3, 0) -> 91867
A23: 17 | B23: 6205 | C23: =ROUND((0.000398*A23-0.17*LN(A23)+1.07)*B23*電力量料金登録!B3, 0) -> 96011
A24: 18 | B24: 6570 | C24: =ROUND((0.000398*A24-0.17*LN(A24)+1.07)*B24*電力量料金登録!B3, 0) -> 100066
A25: 19 | B25: 6935 | C25: =ROUND((0.000398*A25-0.17*LN(A25)+1.07)*B25*電力量料金登録!B3, 0) -> 104040
A26: 20 | B26: 7300 | C26: =ROUND((0.000398*A26-0.17*LN(A26)+1.07)*B26*電力量料金登録!B3, 0) -> 107937
A27: 21 | B27: 7665 | C27: =ROUND((0.000398*A27-0.17*LN(A27)+1.07)*B27*電力量料金登録!B3, 0) -> 111760
A28: 22 | B28: 8030 | C28: =ROUND((0.000398*A28-0.17*LN(A28)+1.07)*B28*電力量料金登録!B3, 0) -> 115514
A29: 23 | B29: 8395 | C29: =ROUND((0.000398*A29-0.17*LN(A29)+1.07)*B29*電力量料金登録!B3, 0) -> 119202
A30: 24 | B30: 8760 | C30: =ROUND((0.000398*A30-0.17*LN(A30)+1.07)*B30*電力量料金登録!B3, 0) -> 122827
A31: 25 | B31: 9125 | C31: =ROUND((0.000398*A31-0.17*LN(A31)+1.07)*B31*電力量料金登録!B3, 0) -> 126393
A32: 26 | B32: 9490 | C32: =ROUND((0.000398*A32-0.17*LN(A32)+1.07)*B32*電力量料金登録!B3, 0) -> 129902
A33: 27 | B33: 9855 | C33: =ROUND((0.000398*A33-0.17*LN(A33)+1.07)*B33*電力量料金登録!B3, 0) -> 133356
A34: 28 | B34: 10220 | C34: =ROUND((0.000398*A34-0.17*LN(A34)+1.07)*B34*電力量料金登録!B3, 0) -> 136758
A35: 29 | B35: 10585 | C35: =ROUND((0.000398*A35-0.17*LN(A35)+1.07)*B35*電力量料金登録!B3, 0) -> 140110
A36: 30 | B36: 10950 | C36: =ROUND((0.000398*A36-0.17*LN(A36)+1.07)*B36*電力量料金登録!B3, 0) -> 143414
A37: 31 | B37: 11315 | C37: =ROUND((0.000398*A37-0.17*LN(A37)+1.07)*B37*電力量料金登録!B3, 0) -> 146671
A38: 32 | B38: 11680 | C38: =ROUND((0.000398*A38-0.17*LN(A38)+1.07)*B38*電力量料金登録!B3, 0) -> 149885
A39: 33 | B39: 12045 | C39: =ROUND((0.000398*A39-0.17*LN(A39)+1.07)*B39*電力量料金登録!B3, 0) -> 153055
A40: 34 | B40: 12410 | C40: =ROUND((0.000398*A40-0.17*LN(A40)+1.07)*B40*電力量料金登録!B3, 0) -> 156184
A41: 35 | B41: 12775 | C41: =ROUND((0.000398*A41-0.17*LN(A41)+1.07)*B41*電力量料金登録!B3, 0) -> 159273
A42: 36 | B42: 13140 | C42: =ROUND((0.000398*A42-0.17*LN(A42)+1.07)*B42*電力量料金登録!B3, 0) -> 162323
A43: 37 | B43: 13505 | C43: =ROUND((0.000398*A43-0.17*LN(A43)+1.07)*B43*電力量料金登録!B3, 0) -> 165337
A44: 38 | B44: 13870 | C44: =ROUND((0.000398*A44-0.17*LN(A44)+1.07)*B44*電力量料金登録!B3, 0) -> 168314
A45: 39 | B45: 14235 | C45: =ROUND((0.000398*A45-0.17*LN(A45)+1.07)*B45*電力量料金登録!B3, 0) -> 171256
A46: 40 | B46: 14600 | C46: =ROUND((0.000398*A46-0.17*LN(A46)+1.07)*B46*電力量料金登録!B3, 0) -> 174164
A47: 41 | B47: 14965 | C47: =ROUND((0.000398*A47-0.17*LN(A47)+1.07)*B47*電力量料金登録!B3, 0) -> 177040
A48: 42 | B48: 15330 | C48: =ROUND((0.000398*A48-0.17*LN(A48)+1.07)*B48*電力量料金登録!B3, 0) -> 179884

Sheet 年間削減電気料金算出図(インバータ→増圧直結) (hidden)
A1: 年間削減電気料金算出図(インバータ→増圧直結)
A3: 貯水槽容量 | B3: 年間使用水量 | C3: 年間削減電気料金
A4: 0.002739726027 | B4: =A4*365 -> 1 | C4: =ROUND( (-0.26*LN(A4)+1.09)*B4*電力量料金登録!B3, 0) -> 68
A5: 0.1 | B5: =A5*365 -> 36.5 | C5: =ROUND( (-0.26*LN(A5)+1.09)*B5*電力量料金登録!B3, 0) -> 1603
A6: 0.5 | B6: =A6*365 -> 182.5 | C6: =ROUND( (-0.26*LN(A6)+1.09)*B6*電力量料金登録!B3, 0) -> 6027
A7: 1 | B7: 365 | C7: =ROUND( (-0.26*LN(A7)+1.09)*B7*電力量料金登録!B3, 0) -> 10344
A8: 2 | B8: 730 | C8: =ROUND( (-0.26*LN(A8)+1.09)*B8*電力量料金登録!B3, 0) -> 17268
A9: 3 | B9: 1095 | C9: =ROUND( (-0.26*LN(A9)+1.09)*B9*電力量料金登録!B3, 0) -> 22900
A10: 4 | B10: 1460 | C10: =ROUND( (-0.26*LN(A10)+1.09)*B10*電力量料金登録!B3, 0) -> 27694
A11: 5 | B11: 1825 | C11: =ROUND( (-0.26*LN(A11)+1.09)*B11*電力量料金登録!B3, 0) -> 31865
A12: 6 | B12: 2190 | C12: =ROUND( (-0.26*LN(A12)+1.09)*B12*電力量料金登録!B3, 0) -> 35539
A13: 7 | B13: 2555 | C13: =ROUND( (-0.26*LN(A13)+1.09)*B13*電力量料金登録!B3, 0) -> 38799
A14: 8 | B14: 2920 | C14: =ROUND( (-0.26*LN(A14)+1.09)*B14*電力量料金登録!B3, 0) -> 41706
A15: 9 | B15: 3285 | C15: =ROUND( (-0.26*LN(A15)+1.09)*B15*電力量料金登録!B3, 0) -> 44304
A16: 10 | B16: 3650 | C16: =ROUND( (-0.26*LN(A16)+1.09)*B16*電力量料金登録!B3, 0) -> 46627
A17: 11 | B17: 4015 | C17: =ROUND( (-0.26*LN(A17)+1.09)*B17*電力量料金登録!B3, 0) -> 48703
A18: 12 | B18: 4380 | C18: =ROUND( (-0.26*LN(A18)+1.09)*B18*電力量料金登録!B3, 0) -> 50554
A19: 13 | B19: 4745 | C19: =ROUND( (-0.26*LN(A19)+1.09)*B19*電力量料金登録!B3, 0) -> 52199
A20: 14 | B20: 5110 | C20: =ROUND( (-0.26*LN(A20)+1.09)*B20*電力量料金登録!B3, 0) -> 53655
A21: 15 | B21: 5475 | C21: =ROUND( (-0.26*LN(A21)+1.09)*B21*電力量料金登録!B3, 0) -> 54934
A22: 16 | B22: 5840 | C22: =ROUND( (-0.26*LN(A22)+1.09)*B22*電力量料金登録!B3, 0) -> 56048
A23: 17 | B23: 6205 | C23: =ROUND( (-0.26*LN(A23)+1.09)*B23*電力量料金登録!B3, 0) -> 57008
A24: 18 | B24: 6570 | C24: =ROUND( (-0.26*LN(A24)+1.09)*B24*電力量料金登録!B3, 0) -> 57823
A25: 19 | B25: 6935 | C25: =ROUND( (-0.26*LN(A25)+1.09)*B25*電力量料金登録!B3, 0) -> 58501
A26: 20 | B26: 7300 | C26: =ROUND( (-0.26*LN(A26)+1.09)*B26*電力量料金登録!B3, 0) -> 59049
A27: 21 | B27: 7665 | C27: =ROUND( (-0.26*LN(A27)+1.09)*B27*電力量料金登録!B3, 0) -> 59473
A28: 22 | B28: 8030 | C28: =ROUND( (-0.26*LN(A28)+1.09)*B28*電力量料金登録!B3, 0) -> 59780
A29: 23 | B29: 8395 | C29: =ROUND( (-0.26*LN(A29)+1.09)*B29*電力量料金登録!B3, 0) -> 59974
A30: 24 | B30: 8760 | C30: =ROUND( (-0.26*LN(A30)+1.09)*B30*電力量料金登録!B3, 0) -> 60062
A31: 25 | B31: 9125 | C31: =ROUND( (-0.26*LN(A31)+1.09)*B31*電力量料金登録!B3, 0) -> 60046
A32: 26 | B32: 9490 | C32: =ROUND( (-0.26*LN(A32)+1.09)*B32*電力量料金登録!B3, 0) -> 59932
A33: 27 | B33: 9855 | C33: =ROUND( (-0.26*LN(A33)+1.09)*B33*電力量料金登録!B3, 0) -> 59723
A34: 28 | B34: 10220 | C34: =ROUND( (-0.26*LN(A34)+1.09)*B34*電力量料金登録!B3, 0) -> 59422
A35: 29 | B35: 10585 | C35: =ROUND( (-0.26*LN(A35)+1.09)*B35*電力量料金登録!B3, 0) -> 59033
A36: 30 | B36: 10950 | C36: =ROUND( (-0.26*LN(A36)+1.09)*B36*電力量料金登録!B3, 0) -> 58560
A37: 31 | B37: 11315 | C37: =ROUND( (-0.26*LN(A37)+1.09)*B37*電力量料金登録!B3, 0) -> 58003
A38: 32 | B38: 11680 | C38: =ROUND( (-0.26*LN(A38)+1.09)*B38*電力量料金登録!B3, 0) -> 57368
A39: 33 | B39: 12045 | C39: =ROUND( (-0.26*LN(A39)+1.09)*B39*電力量料金登録!B3, 0) -> 56655
A40: 34 | B40: 12410 | C40: =ROUND( (-0.26*LN(A40)+1.09)*B40*電力量料金登録!B3, 0) -> 55867
A41: 35 | B41: 12775 | C41: =ROUND( (-0.26*LN(A41)+1.09)*B41*電力量料金登録!B3, 0) -> 55007
A42: 36 | B42: 13140 | C42: =ROUND( (-0.26*LN(A42)+1.09)*B42*電力量料金登録!B3, 0) -> 54077
A43: 37 | B43: 13505 | C43: =ROUND( (-0.26*LN(A43)+1.09)*B43*電力量料金登録!B3, 0) -> 53077
A44: 38 | B44: 13870 | C44: =ROUND( (-0.26*LN(A44)+1.09)*B44*電力量料金登録!B3, 0) -> 52011
A45: 39 | B45: 14235 | C45: =ROUND( (-0.26*LN(A45)+1.09)*B45*電力量料金登録!B3, 0) -> 50880
A46: 40 | B46: 14600 | C46: =ROUND( (-0.26*LN(A46)+1.09)*B46*電力量料金登録!B3, 0) -> 49686
A47: 41 | B47: 14965 | C47: =ROUND( (-0.26*LN(A47)+1.09)*B47*電力量料金登録!B3, 0) -> 48431
A48: 42 | B48: 15330 | C48: =ROUND( (-0.26*LN(A48)+1.09)*B48*電力量料金登録!B3, 0) -> 47115

Sheet 年間削減電気料金算出図(非インバータ→増圧直結) (hidden)
A1: 年間削減電気料金算出図(非インバータ→増圧直結)
A3: 貯水槽容量 | B3: 年間使用水量 | C3: 年間削減電気料金
A4: 0.002739726027 | B4: =A4*365 -> 1 | C4: =ROUND((-0.37*LN(A4)+1.9)*B4*電力量料金登録!B3, 0) -> 106
A5: 0.1 | B5: =A5*365 -> 36.5 | C5: =ROUND((-0.37*LN(A5)+1.9)*B5*電力量料金登録!B3, 0) -> 2612
A6: 0.5 | B6: =A6*365 -> 182.5 | C6: =ROUND((-0.37*LN(A6)+1.9)*B6*電力量料金登録!B3, 0) -> 10232
A7: 1 | B7: 365 | C7: =ROUND((-0.37*LN(A7)+1.9)*B7*電力量料金登録!B3, 0) -> 18031
A8: 2 | B8: 730 | C8: =ROUND((-0.37*LN(A8)+1.9)*B8*電力量料金登録!B3, 0) -> 31194
A9: 3 | B9: 1095 | C9: =ROUND((-0.37*LN(A9)+1.9)*B9*電力量料金登録!B3, 0) -> 42520
A10: 4 | B10: 1460 | C10: =ROUND((-0.37*LN(A10)+1.9)*B10*電力量料金登録!B3, 0) -> 52653
A11: 5 | B11: 1825 | C11: =ROUND((-0.37*LN(A11)+1.9)*B11*電力量料金登録!B3, 0) -> 61899
A12: 6 | B12: 2190 | C12: =ROUND((-0.37*LN(A12)+1.9)*B12*電力量料金登録!B3, 0) -> 70438
A13: 7 | B13: 2555 | C13: =ROUND((-0.37*LN(A13)+1.9)*B13*電力量料金登録!B3, 0) -> 78388
A14: 8 | B14: 2920 | C14: =ROUND((-0.37*LN(A14)+1.9)*B14*電力量料金登録!B3, 0) -> 85836
A15: 9 | B15: 3285 | C15: =ROUND((-0.37*LN(A15)+1.9)*B15*電力量料金登録!B3, 0) -> 92843
A16: 10 | B16: 3650 | C16: =ROUND((-0.37*LN(A16)+1.9)*B16*電力量料金登録!B3, 0) -> 99459
A17: 11 | B17: 4015 | C17: =ROUND((-0.37*LN(A17)+1.9)*B17*電力量料金登録!B3, 0) -> 105724
A18: 12 | B18: 4380 | C18: =ROUND((-0.37*LN(A18)+1.9)*B18*電力量料金登録!B3, 0) -> 111669
A19: 13 | B19: 4745 | C19: =ROUND((-0.37*LN(A19)+1.9)*B19*電力量料金登録!B3, 0) -> 117321
A20: 14 | B20: 5110 | C20: =ROUND((-0.37*LN(A20)+1.9)*B20*電力量料金登録!B3, 0) -> 122703
A21: 15 | B21: 5475 | C21: =ROUND((-0.37*LN(A21)+1.9)*B21*電力量料金登録!B3, 0) -> 127833
A22: 16 | B22: 5840 | C22: =ROUND((-0.37*LN(A22)+1.9)*B22*電力量料金登録!B3, 0) -> 132730
A23: 17 | B23: 6205 | C23: =ROUND((-0.37*LN(A23)+1.9)*B23*電力量料金登録!B3, 0) -> 137407
A24: 18 | B24: 6570 | C24: =ROUND((-0.37*LN(A24)+1.9)*B24*電力量料金登録!B3, 0) -> 141877
A25: 19 | B25: 6935 | C25: =ROUND((-0.37*LN(A25)+1.9)*B25*電力量料金登録!B3, 0) -> 146152
A26: 20 | B26: 7300 | C26: =ROUND((-0.37*LN(A26)+1.9)*B26*電力量料金登録!B3, 0) -> 150242
A27: 21 | B27: 7665 | C27: =ROUND((-0.37*LN(A27)+1.9)*B27*電力量料金登録!B3, 0) -> 154156
A28: 22 | B28: 8030 | C28: =ROUND((-0.37*LN(A28)+1.9)*B28*電力量料金登録!B3, 0) -> 157903
A29: 23 | B29: 8395 | C29: =ROUND((-0.37*LN(A29)+1.9)*B29*電力量料金登録!B3, 0) -> 161491
A30: 24 | B30: 8760 | C30: =ROUND((-0.37*LN(A30)+1.9)*B30*電力量料金登録!B3, 0) -> 164926
A31: 25 | B31: 9125 | C31: =ROUND((-0.37*LN(A31)+1.9)*B31*電力量料金登録!B3, 0) -> 168214
A32: 26 | B32: 9490 | C32: =ROUND((-0.37*LN(A32)+1.9)*B32*電力量料金登録!B3, 0) -> 171362
A33: 27 | B33: 9855 | C33: =ROUND((-0.37*LN(A33)+1.9)*B33*電力量料金登録!B3, 0) -> 174375
A34: 28 | B34: 10220 | C34: =ROUND((-0.37*LN(A34)+1.9)*B34*電力量料金登録!B3, 0) -> 177258
A35: 29 | B35: 10585 | C35: =ROUND((-0.37*LN(A35)+1.9)*B35*電力量料金登録!B3, 0) -> 180015
A36: 30 | B36: 10950 | C36: =ROUND((-0.37*LN(A36)+1.9)*B36*電力量料金登録!B3, 0) -> 182651
A37: 31 | B37: 11315 | C37: =ROUND((-0.37*LN(A37)+1.9)*B37*電力量料金登録!B3, 0) -> 185170
A38: 32 | B38: 11680 | C38: =ROUND((-0.37*LN(A38)+1.9)*B38*電力量料金登録!B3, 0) -> 187576
A39: 33 | B39: 12045 | C39: =ROUND((-0.37*LN(A39)+1.9)*B39*電力量料金登録!B3, 0) -> 189873
A40: 34 | B40: 12410 | C40: =ROUND((-0.37*LN(A40)+1.9)*B40*電力量料金登録!B3, 0) -> 192062
A41: 35 | B41: 12775 | C41: =ROUND((-0.37*LN(A41)+1.9)*B41*電力量料金登録!B3, 0) -> 194149
A42: 36 | B42: 13140 | C42: =ROUND((-0.37*LN(A42)+1.9)*B42*電力量料金登録!B3, 0) -> 196135
A43: 37 | B43: 13505 | C43: =ROUND((-0.37*LN(A43)+1.9)*B43*電力量料金登録!B3, 0) -> 198023
A44: 38 | B44: 13870 | C44: =ROUND((-0.37*LN(A44)+1.9)*B44*電力量料金登録!B3, 0) -> 199817
A45: 39 | B45: 14235 | C45: =ROUND((-0.37*LN(A45)+1.9)*B45*電力量料金登録!B3, 0) -> 201518
A46: 40 | B46: 14600 | C46: =ROUND((-0.37*LN(A46)+1.9)*B46*電力量料金登録!B3, 0) -> 203130
A47: 41 | B47: 14965 | C47: =ROUND((-0.37*LN(A47)+1.9)*B47*電力量料金登録!B3, 0) -> 204653
A48: 42 | B48: 15330 | C48: =ROUND((-0.37*LN(A48)+1.9)*B48*電力量料金登録!B3, 0) -> 206091

Sheet 年間削減電気料金算出図(高置水槽→増圧直結) (hidden)
A1: 年間削減電気料金算出図(高置水槽→増圧直結)
A3: 貯水槽容量 | B3: 年間使用水量 | C3: 年間削減電気料金
A4: 0.002739726027 | B4: =A4*365 -> 1 | C4: =ROUND((0.0012*A4-0.0813*LN(A4)+0.303)*B4*電力量料金登録!B3, 0) -> 20
A5: 0.1 | B5: =A5*365 -> 36.5 | C5: =ROUND((0.0012*A5-0.0813*LN(A5)+0.303)*B5*電力量料金登録!B3, 0) -> 465
A6: 0.5 | B6: =A6*365 -> 182.5 | C6: =ROUND((0.0012*A6-0.0813*LN(A6)+0.303)*B6*電力量料金登録!B3, 0) -> 1708
A7: 1 | B7: 365 | C7: =ROUND((0.0012*A7-0.0813*LN(A7)+0.303)*B7*電力量料金登録!B3, 0) -> 2887
A8: 2 | B8: 730 | C8: =ROUND((0.0012*A8-0.0813*LN(A8)+0.303)*B8*電力量料金登録!B3, 0) -> 4727
A9: 3 | B9: 1095 | C9: =ROUND((0.0012*A9-0.0813*LN(A9)+0.303)*B9*電力量料金登録!B3, 0) -> 6186
A10: 4 | B10: 1460 | C10: =ROUND((0.0012*A10-0.0813*LN(A10)+0.303)*B10*電力量料金登録!B3, 0) -> 7406
A11: 5 | B11: 1825 | C11: =ROUND((0.0012*A11-0.0813*LN(A11)+0.303)*B11*電力量料金登録!B3, 0) -> 8453
A12: 6 | B12: 2190 | C12: =ROUND((0.0012*A12-0.0813*LN(A12)+0.303)*B12*電力量料金登録!B3, 0) -> 9368
A13: 7 | B13: 2555 | C13: =ROUND((0.0012*A13-0.0813*LN(A13)+0.303)*B13*電力量料金登録!B3, 0) -> 10177
A14: 8 | B14: 2920 | C14: =ROUND((0.0012*A14-0.0813*LN(A14)+0.303)*B14*電力量料金登録!B3, 0) -> 10898
A15: 9 | B15: 3285 | C15: =ROUND((0.0012*A15-0.0813*LN(A15)+0.303)*B15*電力量料金登録!B3, 0) -> 11544
A16: 10 | B16: 3650 | C16: =ROUND((0.0012*A16-0.0813*LN(A16)+0.303)*B16*電力量料金登録!B3, 0) -> 12128
A17: 11 | B17: 4015 | C17: =ROUND((0.0012*A17-0.0813*LN(A17)+0.303)*B17*電力量料金登録!B3, 0) -> 12657
A18: 12 | B18: 4380 | C18: =ROUND((0.0012*A18-0.0813*LN(A18)+0.303)*B18*電力量料金登録!B3, 0) -> 13139
A19: 13 | B19: 4745 | C19: =ROUND((0.0012*A19-0.0813*LN(A19)+0.303)*B19*電力量料金登録!B3, 0) -> 13579
A20: 14 | B20: 5110 | C20: =ROUND((0.0012*A20-0.0813*LN(A20)+0.303)*B20*電力量料金登録!B3, 0) -> 13983
A21: 15 | B21: 5475 | C21: =ROUND((0.0012*A21-0.0813*LN(A21)+0.303)*B21*電力量料金登録!B3, 0) -> 14354
A22: 16 | B22: 5840 | C22: =ROUND((0.0012*A22-0.0813*LN(A22)+0.303)*B22*電力量料金登録!B3, 0) -> 14696
A23: 17 | B23: 6205 | C23: =ROUND((0.0012*A23-0.0813*LN(A23)+0.303)*B23*電力量料金登録!B3, 0) -> 15013
A24: 18 | B24: 6570 | C24: =ROUND((0.0012*A24-0.0813*LN(A24)+0.303)*B24*電力量料金登録!B3, 0) -> 15308
A25: 19 | B25: 6935 | C25: =ROUND((0.0012*A25-0.0813*LN(A25)+0.303)*B25*電力量料金登録!B3, 0) -> 15582
A26: 20 | B26: 7300 | C26: =ROUND((0.0012*A26-0.0813*LN(A26)+0.303)*B26*電力量料金登録!B3, 0) -> 15838
A27: 21 | B27: 7665 | C27: =ROUND((0.0012*A27-0.0813*LN(A27)+0.303)*B27*電力量料金登録!B3, 0) -> 16079
A28: 22 | B28: 8030 | C28: =ROUND((0.0012*A28-0.0813*LN(A28)+0.303)*B28*電力量料金登録!B3, 0) -> 16305
A29: 23 | B29: 8395 | C29: =ROUND((0.0012*A29-0.0813*LN(A29)+0.303)*B29*電力量料金登録!B3, 0) -> 16520
A30: 24 | B30: 8760 | C30: =ROUND((0.0012*A30-0.0813*LN(A30)+0.303)*B30*電力量料金登録!B3, 0) -> 16723
A31: 25 | B31: 9125 | C31: =ROUND((0.0012*A31-0.0813*LN(A31)+0.303)*B31*電力量料金登録!B3, 0) -> 16917
A32: 26 | B32: 9490 | C32: =ROUND((0.0012*A32-0.0813*LN(A32)+0.303)*B32*電力量料金登録!B3, 0) -> 17103
A33: 27 | B33: 9855 | C33: =ROUND((0.0012*A33-0.0813*LN(A33)+0.303)*B33*電力量料金登録!B3, 0) -> 17282
A34: 28 | B34: 10220 | C34: =ROUND((0.0012*A34-0.0813*LN(A34)+0.303)*B34*電力量料金登録!B3, 0) -> 17456
A35: 29 | B35: 10585 | C35: =ROUND((0.0012*A35-0.0813*LN(A35)+0.303)*B35*電力量料金登録!B3, 0) -> 17624
A36: 30 | B36: 10950 | C36: =ROUND((0.0012*A36-0.0813*LN(A36)+0.303)*B36*電力量料金登録!B3, 0) -> 17789
A37: 31 | B37: 11315 | C37: =ROUND((0.0012*A37-0.0813*LN(A37)+0.303)*B37*電力量料金登録!B3, 0) -> 17951
A38: 32 | B38: 11680 | C38: =ROUND((0.0012*A38-0.0813*LN(A38)+0.303)*B38*電力量料金登録!B3, 0) -> 18110
A39: 33 | B39: 12045 | C39: =ROUND((0.0012*A39-0.0813*LN(A39)+0.303)*B39*電力量料金登録!B3, 0) -> 18268
A40: 34 | B40: 12410 | C40: =ROUND((0.0012*A40-0.0813*LN(A40)+0.303)*B40*電力量料金登録!B3, 0) -> 18426
A41: 35 | B41: 12775 | C41: =ROUND((0.0012*A41-0.0813*LN(A41)+0.303)*B41*電力量料金登録!B3, 0) -> 18584
A42: 36 | B42: 13140 | C42: =ROUND((0.0012*A42-0.0813*LN(A42)+0.303)*B42*電力量料金登録!B3, 0) -> 18742
A43: 37 | B43: 13505 | C43: =ROUND((0.0012*A43-0.0813*LN(A43)+0.303)*B43*電力量料金登録!B3, 0) -> 18902
A44: 38 | B44: 13870 | C44: =ROUND((0.0012*A44-0.0813*LN(A44)+0.303)*B44*電力量料金登録!B3, 0) -> 19064
A45: 39 | B45: 14235 | C45: =ROUND((0.0012*A45-0.0813*LN(A45)+0.303)*B45*電力量料金登録!B3, 0) -> 19228
A46: 40 | B46: 14600 | C46: =ROUND((0.0012*A46-0.0813*LN(A46)+0.303)*B46*電力量料金登録!B3, 0) -> 19395
A47: 41 | B47: 14965 | C47: =ROUND((0.0012*A47-0.0813*LN(A47)+0.303)*B47*電力量料金登録!B3, 0) -> 19566
A48: 42 | B48: 15330 | C48: =ROUND((0.0012*A48-0.0813*LN(A48)+0.303)*B48*電力量料金登録!B3, 0) -> 19741

Sheet 年間削減電気料金算出図(型式等不明→増圧直結) (hidden)
A1: 年間削減電気料金算出図(型式等不明→増圧直結)
A3: 貯水槽容量 | B3: 年間使用水量 | C3: 年間削減電気料金
A4: 0.002739726027 | B4: =A4*365 -> 1 | C4: =ROUND((0.000398*A4-0.251*LN(A4)+1.11)*B4*電力量料金登録!B3, 0) -> 67
A5: 0.1 | B5: =A5*365 -> 36.5 | C5: =ROUND((0.000398*A5-0.251*LN(A5)+1.11)*B5*電力量料金登録!B3, 0) -> 1602
A6: 0.5 | B6: =A6*365 -> 182.5 | C6: =ROUND((0.000398*A6-0.251*LN(A6)+1.11)*B6*電力量料金登録!B3, 0) -> 6093
A7: 1 | B7: 365 | C7: =ROUND((0.000398*A7-0.251*LN(A7)+1.11)*B7*電力量料金登録!B3, 0) -> 10538
A8: 2 | B8: 730 | C8: =ROUND((0.000398*A8-0.251*LN(A8)+1.11)*B8*電力量料金登録!B3, 0) -> 17781
A9: 3 | B9: 1095 | C9: =ROUND((0.000398*A9-0.251*LN(A9)+1.11)*B9*電力量料金登録!B3, 0) -> 23785
A10: 4 | B10: 1460 | C10: =ROUND((0.000398*A10-0.251*LN(A10)+1.11)*B10*電力量料金登録!B3, 0) -> 28987
A11: 5 | B11: 1825 | C11: =ROUND((0.000398*A11-0.251*LN(A11)+1.11)*B11*電力量料金登録!B3, 0) -> 33596
A12: 6 | B12: 2190 | C12: =ROUND((0.000398*A12-0.251*LN(A12)+1.11)*B12*電力量料金登録!B3, 0) -> 37732
A13: 7 | B13: 2555 | C13: =ROUND((0.000398*A13-0.251*LN(A13)+1.11)*B13*電力量料金登録!B3, 0) -> 41476
A14: 8 | B14: 2920 | C14: =ROUND((0.000398*A14-0.251*LN(A14)+1.11)*B14*電力量料金登録!B3, 0) -> 44887
A15: 9 | B15: 3285 | C15: =ROUND((0.000398*A15-0.251*LN(A15)+1.11)*B15*電力量料金登録!B3, 0) -> 48007
A16: 10 | B16: 3650 | C16: =ROUND((0.000398*A16-0.251*LN(A16)+1.11)*B16*電力量料金登録!B3, 0) -> 50869
A17: 11 | B17: 4015 | C17: =ROUND((0.000398*A17-0.251*LN(A17)+1.11)*B17*電力量料金登録!B3, 0) -> 53501
A18: 12 | B18: 4380 | C18: =ROUND((0.000398*A18-0.251*LN(A18)+1.11)*B18*電力量料金登録!B3, 0) -> 55922
A19: 13 | B19: 4745 | C19: =ROUND((0.000398*A19-0.251*LN(A19)+1.11)*B19*電力量料金登録!B3, 0) -> 58153
A20: 14 | B20: 5110 | C20: =ROUND((0.000398*A20-0.251*LN(A20)+1.11)*B20*電力量料金登録!B3, 0) -> 60208
A21: 15 | B21: 5475 | C21: =ROUND((0.000398*A21-0.251*LN(A21)+1.11)*B21*電力量料金登録!B3, 0) -> 62100
A22: 16 | B22: 5840 | C22: =ROUND((0.000398*A22-0.251*LN(A22)+1.11)*B22*電力量料金登録!B3, 0) -> 63841
A23: 17 | B23: 6205 | C23: =ROUND((0.000398*A23-0.251*LN(A23)+1.11)*B23*電力量料金登録!B3, 0) -> 65440
A24: 18 | B24: 6570 | C24: =ROUND((0.000398*A24-0.251*LN(A24)+1.11)*B24*電力量料金登録!B3, 0) -> 66907
A25: 19 | B25: 6935 | C25: =ROUND((0.000398*A25-0.251*LN(A25)+1.11)*B25*電力量料金登録!B3, 0) -> 68249
A26: 20 | B26: 7300 | C26: =ROUND((0.000398*A26-0.251*LN(A26)+1.11)*B26*電力量料金登録!B3, 0) -> 69473
A27: 21 | B27: 7665 | C27: =ROUND((0.000398*A27-0.251*LN(A27)+1.11)*B27*電力量料金登録!B3, 0) -> 70585
A28: 22 | B28: 8030 | C28: =ROUND((0.000398*A28-0.251*LN(A28)+1.11)*B28*電力量料金登録!B3, 0) -> 71592
A29: 23 | B29: 8395 | C29: =ROUND((0.000398*A29-0.251*LN(A29)+1.11)*B29*電力量料金登録!B3, 0) -> 72497
A30: 24 | B30: 8760 | C30: =ROUND((0.000398*A30-0.251*LN(A30)+1.11)*B30*電力量料金登録!B3, 0) -> 73307
A31: 25 | B31: 9125 | C31: =ROUND((0.000398*A31-0.251*LN(A31)+1.11)*B31*電力量料金登録!B3, 0) -> 74025
A32: 26 | B32: 9490 | C32: =ROUND((0.000398*A32-0.251*LN(A32)+1.11)*B32*電力量料金登録!B3, 0) -> 74655
A33: 27 | B33: 9855 | C33: =ROUND((0.000398*A33-0.251*LN(A33)+1.11)*B33*電力量料金登録!B3, 0) -> 75201
A34: 28 | B34: 10220 | C34: =ROUND((0.000398*A34-0.251*LN(A34)+1.11)*B34*電力量料金登録!B3, 0) -> 75667
A35: 29 | B35: 10585 | C35: =ROUND((0.000398*A35-0.251*LN(A35)+1.11)*B35*電力量料金登録!B3, 0) -> 76054
A36: 30 | B36: 10950 | C36: =ROUND((0.000398*A36-0.251*LN(A36)+1.11)*B36*電力量料金登録!B3, 0) -> 76368
A37: 31 | B37: 11315 | C37: =ROUND((0.000398*A37-0.251*LN(A37)+1.11)*B37*電力量料金登録!B3, 0) -> 76609
A38: 32 | B38: 11680 | C38: =ROUND((0.000398*A38-0.251*LN(A38)+1.11)*B38*電力量料金登録!B3, 0) -> 76781
A39: 33 | B39: 12045 | C39: =ROUND((0.000398*A39-0.251*LN(A39)+1.11)*B39*電力量料金登録!B3, 0) -> 76887
A40: 34 | B40: 12410 | C40: =ROUND((0.000398*A40-0.251*LN(A40)+1.11)*B40*電力量料金登録!B3, 0) -> 76927
A41: 35 | B41: 12775 | C41: =ROUND((0.000398*A41-0.251*LN(A41)+1.11)*B41*電力量料金登録!B3, 0) -> 76905
A42: 36 | B42: 13140 | C42: =ROUND((0.000398*A42-0.251*LN(A42)+1.11)*B42*電力量料金登録!B3, 0) -> 76823
A43: 37 | B43: 13505 | C43: =ROUND((0.000398*A43-0.251*LN(A43)+1.11)*B43*電力量料金登録!B3, 0) -> 76682
A44: 38 | B44: 13870 | C44: =ROUND((0.000398*A44-0.251*LN(A44)+1.11)*B44*電力量料金登録!B3, 0) -> 76484
A45: 39 | B45: 14235 | C45: =ROUND((0.000398*A45-0.251*LN(A45)+1.11)*B45*電力量料金登録!B3, 0) -> 76231
A46: 40 | B46: 14600 | C46: =ROUND((0.000398*A46-0.251*LN(A46)+1.11)*B46*電力量料金登録!B3, 0) -> 75924
A47: 41 | B47: 14965 | C47: =ROUND((0.000398*A47-0.251*LN(A47)+1.11)*B47*電力量料金登録!B3, 0) -> 75566
A48: 42 | B48: 15330 | C48: =ROUND((0.000398*A48-0.251*LN(A48)+1.11)*B48*電力量料金登録!B3, 0) -> 75157

Sheet 年間削減清掃点検費用算出および算出図 (hidden)
A1: 年間清掃点検費用算出および算出図
A3: 貯水槽容量 | B3: 20 | C3: ㎥
A4: 清掃費用 | B4: =IF(B3<=A11,B11,IF(B3<=A13,B13,IF(B3<=A15,B15,IF(B3<=A17,B17,IF(B3<=A19,B19,IF(B3<=A21,B21)))))) -> 80000 | C4: 円
A5: 点検保守費用 | B5: 3300 | C5: 円
A6: 水質検査費用 | B6: 10500 | C6: 円
A7: 算出結果 | B7: =B4+B5+B6 -> 93800 | C7: 円/年
A9: 貯水槽容量 | B9: 削減清掃費用 | C9: 削減清掃点検費用 | D9: 算出結果 | E9: 入力貯水槽容量
A10: 0.1 | B10: 60000 | C10: =B10 + B5 + B6 -> 73800 | D10: =B7 -> 93800 | E10: =B3 -> 20
A11: 10 | B11: 60000 | C11: =B11 + B5 + B6 -> 73800 | D11: =B7 -> 93800 | E11: =B3 -> 20
A12: 10.1 | B12: 80000 | C12: =B12 + B5 + B6 -> 93800 | D12: =B7 -> 93800 | E12: =B3 -> 20
A13: 20 | B13: 80000 | C13: =B13 + B5 + B6 -> 93800 | D13: =B7 -> 93800 | E13: =B3 -> 20
A14: 20.1 | B14: 100000 | C14: =B14 + B5 + B6 -> 113800 | D14: =B7 -> 93800 | E14: =B3 -> 20
A15: 50 | B15: 100000 | C15: =B15 + B5 + B6 -> 113800 | D15: =B7 -> 93800 | E15: =B3 -> 20
A16: 50.1 | B16: 126000 | C16: =B16 + B5 +B6 -> 139800 | D16: =B7 -> 93800 | E16: =B3 -> 20
A17: 70 | B17: 126000 | C17: =B17 + B5 + B6 -> 139800 | D17: =B7 -> 93800 | E17: =B3 -> 20
A18: 70.1 | B18: 150000 | C18: =B18 + B5 +B6 -> 163800 | D18: =B7 -> 93800 | E18: =B3 -> 20
A19: 100 | B19: 150000 | C19: =B19 + B5 + B6 -> 163800 | D19: =B7 -> 93800 | E19: =B3 -> 20
A20: 100.1 | B20: 240000 | C20: =B20 + B5 + B6 -> 253800 | D20: =B7 -> 93800 | E20: =B3 -> 20
A21: 200 | B21: 240000 | C21: =B21 + B5 + B6 -> 253800 | D21: =B7 -> 93800 | E21: =B3 -> 20

Sheet 年間削減電気料金算出 (hidden)
A1: 年間削減電気料金算出
A3: 貯水槽容量 | B3: =B5/365 -> 2.739726027 | C3: ㎥
A5: 年間使用水量 | B5: 1000 | C5: ㎥/年
A7: ポンプ＋給水方式 | B7: 算出結果 | C7: 算出図作成用シート
A8: インバータ式直圧直結給水方式 | B8: =(-0.178*LN(B3)+1.05)*B5*電力量料金登録!B3 -> 22635.63352 | C8: 年間削減電気料金算出図(インバータ→直圧直結)
A9: 非インバータ式直圧直結給水方式 | B9: =(-0.289*LN(B3)+1.86)*B5*電力量料金登録!B3 -> 40786.95555 | C9: 年間削減電気料金算出図(非インバータ→直圧直結)
A10: 高置水槽直圧直結給水方式 | B10: =(0.0012*B3+0.261)*B5*電力量料金登録!B3 -> 6871.479452 | C10: 年間削減電気料金算出図(高置水槽→直圧直結)
A11: 型式等不明直圧直結給水方式 | B11: =(0.000398*B3-0.17*LN(B3)+1.07)*B5*電力量料金登録!B3 -> 23393.61865 | C11: 年間削減電気料金算出図(型式等不明→直圧直結)
A12: インバータ式増圧直結給水方式 | B12: =(-0.26*LN(B3)+1.09)*B5*電力量料金登録!B3 -> 21526.88042 | C12: 年間削減電気料金算出図(インバータ→増圧直結)
A13: 非インバータ式増圧直結給水方式 | B13: =(-0.37*LN(B3)+1.9)*B5*電力量料金登録!B3 -> 39704.40676 | C13: 年間削減電気料金算出図(非インバータ→増圧直結)
A14: 高置水槽増圧直結給水方式 | B14: =(0.0012*B3-0.0813*LN(B3)+0.303)*B5*電力量料金登録!B3 -> 5833.069369 | C14: 年間削減電気料金算出図(高置水槽→増圧直結)
A15: 型式等不明増圧直結給水方式 | B15: =(0.000398*B3-0.251*LN(B3)+1.11)*B5*電力量料金登録!B3 -> 22311.06986 | C15: 年間削減電気料金算出図(型式等不明→増圧直結)

Sheet 削減効果算出資料レイアウト (hidden)
BN2: 算出条件
BO4: 貯水槽容量
BO7: 年間使用水量
BO10: 現在使用中の揚水ポンプの型式等
BO13: 直結切り替え後の給水方式
BO16: 工事費の見積り金額
BN19: ※ | BO19: こちらの算出結果画面外の値は、「確認用」のものですので、
BO20: こちらで算出条件を修正しても、算出結果には反映されません。
BO21: 算出条件を修正する場合は、一度画面を閉じて、
BO22: 再度システムを起動の上、入力してください。
K32: 削減される年間電気料金 （ A ) | AR32: 削減される年間清掃点検費用 ( B )
S34: 円／年 | AZ34: 円／年
K40: 削減される費用の合計 ( A + B ) | AP40: 回収可能年数の目安
AP41: ( 工事費の見積り金額 ÷ 削減される費用の合計 )
P42: =P34+AW34 -> 0 | S42: 円／年
AZ43: 年程度
E46: ※１ | G46: 削減される年間電気料金（円／年）の算出方法は、年間使用水量が15,000㎥／年までの貯水槽水道を対象としています。
G47: また、この削減効果は試算値（東京都水道局ホームページを参考)であり、実際とは異なる場合があります。
E48: ※２ | G48: この算出図は、貯水槽水道方式と直結給水方式（直圧直結・増圧直結）における、年間使用水量に応じた年間電気料金の差額を表したものです。
G49: 算出条件については、東京電力㈱が公表している電力量料金「$円／kWh」を用いて削減効果を算出しております。
E50: ※３ | G50: 削減される年間清掃点検費用（円／年）は、水質検査も含んでいます。また、この削減効果は目安であり、実際とは異なる場合があります。
E51: ※４ | G51: 回収可能年数は、あくまで目安となりますので、実際とは異なる場合があります。
G52: また、増圧直結給水方式へ切り替えた場合は、増圧ポンプのメンテナンス費用が別途発生します。

Sheet 電力量料金登録 (hidden)
A1: 電力量料金登録
A3: 電力量料金 | B3: 26 | C3: 円/kWh

Sheet 給水方式マスタ (hidden)
A1: 直圧直結給水方式
A2: 増圧直結給水方式

Sheet ポンプの型式等マスタ (hidden)
A1: インバータ式
A2: 非インバータ式
A3: 高置水槽
A4: 型式等不明
